bitfinex/quotes_SOLUSD_20241029
["timestamp","ask_amount","ask_price","bid_price","bid_amount"]
[1730196181432,23.776884,181.13,181.05,13.8083]
[1730196181640,7.44714234,181.07,181.05,13.8083]
[1730196181843,7.44714234,181.08,181.05,13.8083]
[1730196182629,7.44714234,181.09,181.0,5.5248]
[1730196182837,7.44714234,181.07,181.01,20.0]
[1730196183041,7.44714234,181.07,181.02,7.44714234]
[1730196187547,23.776884,181.13,180.99,16.3646]
[1730196187548,7.44714234,181.09,181.04,5.5236]
[1730196188554,7.44714234,181.09,181.04,19.3327]
[1730196189045,29.297484,181.14,181.05,7.44714234]
[1730196189226,7.44714234,181.11,181.05,7.44714234]
[1730196189426,7.44714234,181.1,181.05,7.44714234]
[1730196190155,7.44714234,181.11,181.06,5.523]
[1730196190328,7.44714234,181.11,181.06,12.97014234]
[1730196190524,22.3452,181.15,181.06,26.77764234]
[1730196190722,7.44714234,181.11,181.06,26.77764234]
[1730196191152,22.3452,181.15,181.07,7.44714234]
[1730196191325,7.44714234,181.13,181.08,7.44714234]
[1730196192255,7.44714234,181.13,181.09,5.5221]
[1730196193426,7.44714234,181.13,181.09,19.3273]
[1730196196139,7.44714234,181.13,181.09,13.8052]
[1730196197731,7.44714234,181.13,181.08,7.44714234]
[1730196198455,7.44714234,181.14,181.08,7.44714234]
[1730196198743,15.4161,181.2,181.13,7.44714234]
[1730196198949,15.4161,181.2,181.14,7.44714234]
[1730196199125,7.44714234,181.19,181.14,7.44714234]
[1730196199932,7.44714234,181.19,181.15,5.5202]
[1730196200252,7.44714234,181.19,181.15,19.3209]
[1730196202159,7.44714234,181.19,181.15,13.8007]
[1730196203329,7.44714234,181.18,181.15,13.8007]
[1730196203527,7.44714234,181.16,181.15,13.8007]
[1730196204439,7.44714234,181.16,181.11,7.44714234]
[1730196204757,23.776884,181.21,181.08,5.5224]
[1730196204948,23.776884,181.21,181.14,7.44714234]
[1730196205253,23.776884,181.21,181.09,6.78554144]
[1730196205254,7.44714234,181.21,181.15,7.44714234]
[1730196206032,31.73350164,181.24,181.18,7.44714234]
[1730196206360,7.44714234,181.21,181.15,7.44714234]
[1730196206655,7.44714234,181.21,181.16,5.5199]
[1730196206831,7.44714234,181.2,181.16,5.5199]
[1730196207354,7.44714234,181.21,181.16,19.3198]
[1730196208337,31.73350164,181.24,181.17,7.44714234]
[1730196208663,7.44714234,181.22,181.17,7.44714234]
[1730196210436,7.44714234,181.22,181.18,5.5193]
[1730196210860,7.44714234,181.22,181.18,19.3177]
[1730196211152,7.44714234,181.21,181.18,19.3177]
[1730196212034,7.44714234,181.21,181.16,7.44714234]
[1730196212443,7.44714234,181.21,181.15,7.44714234]
[1730196212645,7.44714234,181.21,181.14,5.5205]
[1730196212845,7.44714234,181.21,181.15,7.44714234]
[1730196213769,7.44714234,181.21,181.16,19.3198]
[1730196214376,7.44714234,181.21,181.16,26.76694234]
[1730196214667,7.44714234,181.21,181.16,13.7999]
[1730196214883,7.44714234,181.21,181.16,21.24704234]
[1730196217265,7.44714234,181.2,181.16,13.7999]
[1730196217565,7.44714234,181.22,181.17,7.44714234]
[1730196217946,7.44714234,181.19,181.16,13.7999]
[1730196218157,7.44714234,181.21,181.16,21.24704234]
[1730196218378,7.44714234,181.22,181.17,7.44714234]
[1730196218747,16.31740164,181.24,181.18,7.44714234]
[1730196218963,23.76454398,181.24,181.19,7.44714234]
[1730196219178,23.76454398,181.24,181.2,5.5187]
[1730196220077,7.44714234,181.23,181.18,7.44714234]
[1730196221547,7.44714234,181.23,181.19,5.519]
[1730196221745,7.44714234,181.21,181.19,19.3166]
[1730196223260,7.44714234,181.21,181.15,7.44714234]
[1730196223577,7.44714234,181.21,181.16,5.5199]
[1730196223783,7.44714234,181.2,181.16,5.5199]
[1730196224247,7.44714234,181.2,181.14,7.44714234]
[1730196224577,7.44714234,181.2,181.16,13.7999]
[1730196225075,7.44714234,181.21,181.16,13.7999]
[1730196225250,7.44714234,181.21,181.16,19.3198]
[1730196225571,7.44714234,181.2,181.16,19.3198]
[1730196226364,7.44714234,181.18,181.16,19.3198]
[1730196227061,7.44714234,181.17,181.16,19.3198]
[1730196227256,7.44714234,181.17,181.12,7.44714234]
[1730196227461,7.44714234,181.17,181.13,5.5208]
[1730196227771,5.5185,181.21,181.13,5.5208]
[1730196227772,7.44714234,181.16,181.13,19.323]
[1730196228353,7.44714234,181.14,181.13,19.323]
[1730196229377,7.44714234,181.14,181.07,29.77494234]
[1730196229576,7.44714234,181.13,181.08,7.44714234]
[1730196230477,7.44714234,181.13,181.08,12.96954234]
[1730196231570,7.44714234,181.13,181.09,5.5221]
[1730196232252,7.44714234,181.11,181.09,19.3273]
[1730196233470,7.44714234,181.11,181.09,13.8052]
[1730196234384,7.44714234,181.12,181.09,13.8052]
[1730196236679,16.2296,181.16,181.09,13.8052]
[1730196236884,7.44714234,181.14,181.09,13.8052]
[1730196237989,7.44714234,181.14,181.08,7.44714234]
[1730196239282,7.44714234,181.12,181.04,43.776884]
[1730196239487,7.44714234,181.12,181.06,7.44714234]
[1730196240278,7.44714234,181.12,181.07,7.44714234]
[1730196241484,7.44714234,181.12,181.08,5.5224]
[1730196242478,7.44714234,181.12,181.08,19.3284]
[1730196249061,7.44714234,181.11,181.08,19.3284]
[1730196249260,7.44714234,181.1,181.08,19.3284]
[1730196249983,7.44714234,181.09,181.08,19.3284]
[1730196250297,7.44714234,181.09,181.08,13.806]
[1730196251092,7.44714234,181.09,181.03,12.97104234]
[1730196251393,7.44714234,181.09,181.04,7.44714234]
[1730196253186,7.44714234,181.09,181.03,7.44714234]
[1730196254692,7.44714234,181.09,181.04,5.5236]
[1730196255389,16.0818,181.12,181.04,5.5236]
[1730196255562,7.44714234,181.09,181.04,19.3327]
[1730196256788,7.44714234,181.08,181.04,19.3327]
[1730196261296,7.44714234,181.09,181.04,19.3327]
[1730196261493,7.44714234,181.09,181.01,20.0]
[1730196261798,7.44714234,181.06,181.01,27.44714234]
[1730196261995,7.44714234,181.07,181.02,7.44714234]
[1730196262377,7.44714234,181.07,181.01,20.0]
[1730196262378,7.44714234,181.08,181.03,7.44714234]
[1730196262975,7.44714234,181.08,181.04,5.5236]
[1730196263372,7.44714234,181.09,181.04,26.77984234]
[1730196264384,7.44714234,181.09,181.04,19.3327]
[1730196269475,7.44714234,181.08,181.04,19.3327]
[1730196272193,7.44714234,181.07,181.04,19.3327]
[1730196272599,7.44714234,181.07,181.04,13.8091]
[1730196275385,7.44714234,181.08,181.04,13.8091]
[1730196275784,16.0818,181.12,181.05,7.44714234]
[1730196276088,7.44714234,181.1,181.05,7.44714234]
[1730196276288,7.44714234,181.1,181.06,5.523]
[1730196276605,7.44714234,181.09,181.06,5.523]
[1730196277412,7.44714234,181.09,181.06,19.3305]
[1730196278705,7.44714234,181.09,181.06,13.8075]
[1730196284518,16.0818,181.12,181.06,13.8075]
[1730196284696,7.44714234,181.09,181.06,13.8075]
[1730196287296,7.44714234,181.1,181.06,13.8075]
[1730196288518,7.44714234,181.1,181.06,19.3305]
[1730196296720,16.0818,181.12,181.0,29.78856936]
[1730196296721,7.44714234,181.09,181.04,7.44714234]
[1730196297722,7.44714234,181.08,181.02,13.8106]
[1730196297912,7.44714234,181.08,181.02,21.25774234]
[1730196298217,7.44714234,181.08,181.03,7.44714234]
[1730196299097,7.44714234,181.08,181.04,5.5236]
[1730196299414,16.32710483,181.13,181.06,7.44714234]
[1730196299718,7.44714234,181.11,181.06,7.44714234]
[1730196300598,7.44714234,181.11,181.07,5.5227]
[1730196301427,7.44714234,181.11,181.07,19.3295]
[1730196302424,7.44714234,181.11,181.07,13.8068]
[1730196303316,7.44714234,181.1,181.07,13.8068]
[1730196304320,7.44714234,181.09,181.04,7.44714234]
[1730196304631,7.44714234,181.06,181.01,5.5245]
[1730196305116,7.44714234,181.06,181.01,12.97164234]
[1730196305494,7.44714234,181.06,181.01,26.78294234]
[1730196305695,7.44714234,181.06,181.01,21.25844234]
[1730196306117,7.44714234,181.06,181.01,13.8113]
[1730196306320,7.44714234,181.06,181.01,21.25844234]
[1730196308901,7.44714234,181.07,181.03,5.5239]
[1730196309100,16.2374,181.11,181.03,5.5239]
[1730196309323,7.44714234,181.09,181.04,7.44714234]
[1730196310305,7.44714234,181.08,181.05,5.5233]
[1730196311329,7.44714234,181.08,181.03,7.44714234]
[1730196311509,7.44714234,181.07,180.99,39.338]
[1730196311701,7.44714234,181.06,180.99,39.338]
[1730196311909,7.44714234,181.07,181.02,7.44714234]
[1730196312622,7.44714234,181.07,181.03,5.5239]
[1730196313630,7.44714234,181.07,181.03,19.3337]
[1730196314414,7.44714234,181.08,181.03,19.3337]
[1730196314725,7.44714234,181.08,181.03,26.78084234]
[1730196315233,7.44714234,181.08,181.03,7.44714234]
[1730196316639,7.44714234,181.06,181.0,19.3369]
[1730196316808,7.44714234,181.06,181.01,7.44714234]
[1730196317441,7.44714234,181.06,181.02,5.5242]
[1730196317617,7.44714234,181.07,181.02,5.5242]
[1730196318632,7.44714234,181.07,181.02,19.3348]
[1730196319140,7.44714234,181.06,181.02,13.8106]
[1730196320228,7.44714234,181.07,181.02,26.78194234]
[1730196320430,7.44714234,181.08,181.03,7.44714234]
[1730196321336,7.44714234,181.08,181.04,5.5236]
[1730196321641,7.44714234,181.09,181.04,12.97074234]
[1730196322524,7.44714234,181.09,181.04,26.77984234]
[1730196323035,7.44714234,181.08,181.03,7.44714234]
[1730196323332,7.44714234,181.09,181.04,7.44714234]
[1730196324621,7.44714234,181.09,180.99,20.0]
[1730196324622,7.44714234,181.09,181.05,12.97044234]
[1730196325416,7.44714234,181.09,181.05,26.77874234]
[1730196327055,7.44714234,181.08,180.99,20.0]
[1730196327213,7.44714234,181.08,181.03,7.44714234]
[1730196327729,7.44714234,181.09,181.04,7.44714234]
[1730196328034,7.44714234,181.09,181.01,13.8113]
[1730196328336,7.44714234,181.09,181.05,5.5233]
[1730196329430,7.44714234,181.09,181.05,19.3316]
[1730196331034,7.44714234,181.08,181.05,19.3316]
[1730196331410,7.44714234,181.09,181.05,19.3316]
[1730196338340,7.44714234,181.08,181.05,19.3316]
[1730196339233,7.44714234,181.08,181.05,13.8083]
[1730196339629,7.44714234,181.09,181.05,13.8083]
[1730196340131,7.44714234,181.1,181.05,21.25544234]
[1730196341221,7.44714234,181.1,181.05,26.77874234]
[1730196344518,7.44714234,181.09,181.05,13.8083]
[1730196344721,7.44714234,181.07,181.0,5.5248]
[1730196344938,7.44714234,181.04,181.0,5.5248]
[1730196345134,7.44714234,181.03,181.0,19.3369]
[1730196346731,7.44714234,181.03,181.0,13.8121]
[1730196349350,7.44714234,181.01,180.92,16.0651]
[1730196349648,7.44714234,181.01,180.95,7.44714234]
[1730196350524,7.44714234,181.01,180.96,12.97314234]
[1730196351553,7.44714234,181.01,180.95,7.44714234]
[1730196352236,7.44714234,180.99,180.94,7.44714234]
[1730196353038,7.44714234,180.99,180.93,26.79144234]
[1730196354926,7.44714234,180.99,180.93,19.3443]
[1730196355133,7.44714234,180.99,180.93,26.79144234]
[1730196355434,7.44714234,180.98,180.93,26.79144234]
[1730196355640,7.44714234,180.97,180.93,19.3443]
[1730196357352,7.44714234,180.94,180.9,13.8195]
[1730196358530,7.44714234,180.94,180.9,19.3474]
[1730196360347,31.22402634,180.95,180.9,26.79454234]
[1730196361049,7.44714234,180.94,180.9,19.3474]
[1730196361239,31.22402634,180.95,180.9,26.79454234]
[1730196362267,7.44714234,180.92,180.9,13.8195]
[1730196365758,7.44714234,180.91,180.83,5.53]
[1730196366135,7.44714234,180.92,180.86,7.44714234]
[1730196367151,7.44714234,180.92,180.87,7.44714234]
[1730196368662,7.44714234,180.92,180.88,5.5285]
[1730196369251,31.22402634,180.91,180.88,19.3498]
[1730196369446,7.44714234,180.9,180.88,13.8213]
[1730196371582,43.776884,180.93,180.88,13.8213]
[1730196371773,7.44714234,180.92,180.88,13.8213]
[1730196372285,23.776884,180.93,180.88,21.26844234]
[1730196372590,7.44714234,180.97,180.91,7.44714234]
[1730196372756,5.5254,180.98,180.92,5.5273]
[1730196372963,7.44714234,180.97,180.92,5.5273]
[1730196373871,23.776884,180.96,180.92,19.3455]
[1730196374677,31.22402634,180.96,180.92,19.3455]
[1730196376255,36.75002634,180.96,180.92,19.3455]
[1730196377668,31.22402634,180.94,180.89,7.44714234]
[1730196378665,36.75072634,180.94,180.88,7.44714234]
[1730196379675,36.75072634,180.94,180.89,7.44714234]
[1730196379870,36.75072634,180.94,180.88,7.44714234]
[1730196380176,23.776884,180.92,180.88,7.44714234]
[1730196380668,31.22402634,180.92,180.87,7.44714234]
[1730196381268,36.75132634,180.92,180.87,12.97564234]
[1730196381658,36.75132634,180.92,180.87,26.79764234]
[1730196381864,36.60523705,180.92,180.87,19.3505]
[1730196383066,29.15809471,180.92,180.88,7.44714234]
[1730196383445,23.63079471,180.92,180.88,7.44714234]
[1730196386071,23.63079471,180.92,180.88,12.97554234]
[1730196387472,20.1,180.98,180.91,7.44714234]
[1730196387768,7.44714234,180.96,180.91,7.44714234]
[1730196388768,29.303184,180.95,180.91,7.44714234]
[1730196390373,29.303184,180.95,180.91,12.97464234]
[1730196392384,36.75032634,180.95,180.9,12.97494234]
[1730196395673,7.44714234,180.93,180.88,7.44714234]
[1730196396057,7.44714234,180.94,180.88,7.44714234]
[1730196396262,23.776884,180.93,180.88,7.44714234]
[1730196396476,7.44714234,180.93,180.88,7.44714234]
[1730196396659,23.776884,180.92,180.87,7.44714234]
[1730196397148,23.776884,180.92,180.83,19.3551]
[1730196397149,23.776884,180.92,180.88,7.44714234]
[1730196397364,23.776884,180.92,180.87,7.44714234]
[1730196397761,7.44714234,180.9,180.83,19.3551]
[1730196398159,23.776884,180.9,180.85,7.44714234]
[1730196399062,23.776884,180.9,180.86,5.5291]
[1730196399261,23.776884,180.9,180.86,12.97624234]
[1730196399466,36.75192634,180.9,180.83,5.53]
[1730196399657,29.304784,180.9,180.85,7.44714234]
[1730196399857,29.304784,180.9,180.83,5.53]
[1730196400084,23.776884,180.9,180.86,7.44714234]
[1730196401068,23.776884,180.9,180.86,12.97614234]
[1730196403063,23.776884,180.9,180.86,26.79894234]
[1730196403564,23.776884,180.9,180.87,7.44714234]
[1730196404086,23.776884,180.91,180.87,7.44714234]
[1730196404966,23.776884,180.92,180.89,7.44714234]
[1730196405172,20.0,180.95,180.91,7.44714234]
[1730196405781,5.5263,180.96,180.91,7.44714234]
[1730196405989,12.97344234,180.96,180.9,7.44714234]
[1730196406666,23.776884,180.95,180.9,12.97474234]
[1730196407668,36.75052634,180.95,180.9,12.97474234]
[1730196408569,7.44714234,180.94,180.89,21.26714234]
[1730196408775,23.776884,180.93,180.89,13.82]
[1730196411081,29.303884,180.93,180.89,13.82]
[1730196412161,36.75102634,180.93,180.82,16.1552639]
[1730196412366,36.75102634,180.93,180.88,7.44714234]
[1730196412692,29.303884,180.93,180.88,7.44714234]
[1730196413387,29.303884,180.93,180.88,12.97544234]
[1730196413969,36.75102634,180.93,180.83,5.53]
[1730196414182,36.75102634,180.93,180.87,7.44714234]
[1730196415185,7.44714234,180.92,180.87,12.97574234]
[1730196415386,23.776884,180.91,180.87,12.97574234]
[1730196415686,23.776884,180.91,180.88,7.44714234]
[1730196415890,23.776884,180.92,180.88,7.44714234]
[1730196416369,36.75142634,180.92,180.87,7.44714234]
[1730196416987,29.304284,180.92,180.88,7.44714234]
[1730196420673,36.75142634,180.92,180.87,5.5286]
[1730196420879,36.75142634,180.92,180.87,12.97574234]
[1730196421899,29.304284,180.92,180.87,12.97574234]
[1730196423198,29.304284,180.92,180.86,13.8224]
[1730196423402,29.304284,180.92,180.87,7.44714234]
[1730196423693,29.304284,180.92,180.88,7.44714234]
[1730196424971,29.304284,180.92,180.87,5.5288]
[1730196424972,70.1,180.97,180.91,7.44714234]
[1730196425177,4.14035369,180.96,180.93,7.44714234]
[1730196425372,21.86955449,180.97,180.93,7.44714234]
[1730196426600,23.776884,180.96,180.93,7.44714234]
[1730196427583,29.302984,180.96,180.93,7.44714234]
[1730196428098,29.302984,180.96,180.92,5.5271]
[1730196428389,16.34385449,180.97,180.95,7.44714234]
[1730196429072,16.34385449,180.97,180.94,7.44714234]
[1730196431194,16.34385449,180.97,180.95,7.44714234]
[1730196431394,16.34385449,180.97,180.96,7.44714234]
[1730196431573,46.34385449,180.97,180.96,7.44714234]
[1730196432570,16.34385449,180.97,180.96,7.44714234]
[1730196432766,16.34385449,180.97,180.96,12.97314234]
[1730196434498,5.5235,181.05,180.96,26.78834234]
[1730196434678,23.776884,181.04,181.02,7.44714234]
[1730196434882,30.0,181.03,181.01,5.5244]
[1730196435300,30.0,181.03,180.94,6.2151]
[1730196435502,30.0,181.03,180.95,5.5263]
[1730196436183,30.0,181.03,181.0,7.44714234]
[1730196437497,30.0,181.03,181.01,7.44714234]
[1730196437676,30.0,181.03,181.0,7.44714234]
[1730196438201,30.0,181.03,181.01,7.44714234]
[1730196439490,30.0,181.03,181.02,7.44714234]
[1730196439690,53.776884,181.03,181.02,7.44714234]
[1730196441182,53.776884,181.03,181.01,7.44714234]
[1730196441183,23.776884,181.03,181.01,7.44714234]
[1730196444184,23.776884,181.03,181.0,7.44714234]
[1730196448992,21.85982283,181.04,181.01,7.44714234]
[1730196451419,16.33622283,181.04,181.01,12.97154234]
[1730196451591,16.33622283,181.04,181.03,7.44714234]
[1730196452094,16.33622283,181.04,181.01,19.3357]
[1730196452294,16.33622283,181.04,181.02,7.44714234]
[1730196455312,29.30706517,181.04,180.99,7.44714234]
[1730196455518,29.30706517,181.04,180.95,19.3422]
[1730196455519,23.776884,181.01,180.95,19.3422]
[1730196455713,23.776884,181.01,180.97,7.44714234]
[1730196455902,23.776884,181.02,180.97,7.44714234]
[1730196456414,23.776884,181.02,180.98,7.44714234]
[1730196457201,29.301384,181.02,180.98,7.44714234]
[1730196458800,36.74852634,181.02,180.96,7.44714234]
[1730196459894,36.74852634,181.02,180.96,12.97304234]
[1730196463547,37.44714234,181.0,180.93,20.72]
[1730196463696,23.776884,180.99,180.94,7.44714234]
[1730196464499,7.44714234,180.98,180.93,26.79144234]
[1730196464719,12.97264234,180.98,180.93,26.79144234]
[1730196465217,12.97264234,180.98,180.93,19.3443]
[1730196466208,12.97264234,180.98,180.93,7.44714234]
[1730196467328,12.97264234,180.98,180.93,12.97384234]
[1730196467919,5.5255,180.98,180.93,12.97384234]
[1730196470405,5.5255,180.98,180.94,7.44714234]
[1730196471613,5.5255,180.98,180.94,12.97374234]
[1730196472128,5.5255,180.98,180.94,5.5266]
[1730196472439,31.22402634,180.97,180.92,13.8178]
[1730196473008,31.22402634,180.97,180.92,19.3451]
[1730196473427,31.22402634,180.97,180.92,13.8178]
[1730196473633,5.526,180.96,180.92,21.26494234]
[1730196474233,5.526,180.96,180.93,7.44714234]
[1730196475035,23.776884,180.97,180.94,7.44714234]
[1730196476221,23.776884,180.97,180.93,12.97404234]
[1730196477519,31.22402634,180.97,180.93,5.5269]
[1730196477720,36.74982634,180.97,180.93,5.5269]
[1730196479736,29.302684,180.97,180.93,7.44714234]
[1730196479937,36.74982634,180.97,180.92,21.26494234]
[1730196481014,36.74982634,180.97,180.92,26.79224234]
[1730196481634,7.44714234,180.96,180.9,7.44714234]
[1730196481836,23.776884,180.95,180.9,7.44714234]
[1730196482625,23.776884,180.95,180.91,5.5276]
[1730196482935,23.776884,180.95,180.91,12.97474234]
[1730196485611,29.303284,180.95,180.91,12.97474234]
[1730196486535,23.776884,180.95,180.91,12.97474234]
[1730196486833,29.302984,180.96,180.91,12.97474234]
[1730196490747,36.75012634,180.96,180.91,12.97474234]
[1730196493345,36.75012634,180.96,180.91,26.79374234]
[1730196493722,29.302984,180.96,180.91,26.79374234]
[1730196494848,23.776884,180.96,180.93,7.44714234]
[1730196495148,23.776884,180.97,180.93,7.44714234]
[1730196496557,70.2,181.01,180.93,12.97404234]
[1730196496558,43.776884,181.0,180.93,12.97404234]
[1730196496729,23.776884,180.98,180.93,12.97404234]
[1730196497547,23.776884,180.98,180.93,26.79144234]
[1730196499433,31.22402634,180.98,180.93,26.79144234]
[1730196501641,36.74942634,180.98,180.93,26.79144234]
[1730196503450,29.302284,180.98,180.93,26.79144234]
[1730196505150,23.776884,180.98,180.93,26.79144234]
[1730196505352,29.302384,180.98,180.93,26.79144234]
[1730196506845,36.74952634,180.98,180.93,13.8174]
[1730196507240,4.13435072,180.97,180.93,13.8174]
[1730196507748,11.58149306,180.97,180.93,13.8174]
[1730196507950,4.13435072,180.97,180.93,13.8174]
[1730196508256,4.13435072,180.97,180.93,21.26454234]
[1730196509731,4.13435072,180.97,180.93,26.79144234]
[1730196510435,36.74952634,180.98,180.93,26.79144234]
[1730196510958,36.74952634,180.98,180.93,19.3443]
[1730196511552,7.44714234,180.97,180.93,13.8174]
[1730196511757,7.44714234,180.96,180.89,19.3482]
[1730196512057,7.44714234,180.96,180.9,7.44714234]
[1730196512955,12.97334234,180.96,180.91,12.97474234]
[1730196514740,12.97334234,180.96,180.89,19.3482]
[1730196514964,12.97334234,180.96,180.91,7.44714234]
[1730196515856,12.97334234,180.96,180.91,12.97454234]
[1730196516663,29.303284,180.95,180.91,12.97454234]
[1730196516957,29.303284,180.95,180.91,5.5274]
[1730196519563,36.75042634,180.95,180.89,26.79534234]
[1730196520467,4.13360107,180.94,180.89,26.79534234]
[1730196520646,7.44714234,180.94,180.89,26.79534234]
[1730196521367,7.44714234,180.94,180.89,19.3482]
[1730196521566,12.97394234,180.94,180.89,19.3482]
[1730196522261,12.97394234,180.94,180.89,26.79534234]
[1730196522765,29.303284,180.95,180.91,7.44714234]
[1730196523768,23.776884,180.96,180.92,7.44714234]
[1730196524765,23.776884,180.98,180.94,7.44714234]
[1730196524962,4.13192566,180.97,180.94,7.44714234]
[1730196525265,23.776884,180.98,180.94,7.44714234]
[1730196525443,23.776884,180.98,180.95,7.44714234]
[1730196525444,4.13212639,180.97,180.95,7.44714234]
[1730196525774,23.776884,180.98,180.95,7.44714234]
[1730196526074,4.13216906,180.97,180.95,7.44714234]
[1730196526251,23.776884,180.98,180.95,7.44714234]
[1730196526561,4.13285777,180.97,180.95,7.44714234]
[1730196526774,29.302384,180.98,180.94,7.44714234]
[1730196526951,4.13285638,180.97,180.94,7.44714234]
[1730196527153,29.302384,180.98,180.93,12.97374234]
[1730196527362,4.13275967,180.97,180.93,12.97374234]
[1730196527655,29.302384,180.98,180.93,12.97374234]
[1730196527855,4.13276157,180.97,180.93,12.97374234]
[1730196528064,29.302384,180.98,180.93,12.97374234]
[1730196528373,4.13272353,180.97,180.93,12.97374234]
[1730196528670,29.302384,180.98,180.93,12.97374234]
[1730196528874,4.13272143,180.97,180.93,12.97374234]
[1730196529056,29.302384,180.98,180.93,12.97374234]
[1730196529257,4.13270719,180.97,180.93,12.97374234]
[1730196529459,29.302384,180.98,180.93,12.97374234]
[1730196529657,4.1326983,180.97,180.93,12.97374234]
[1730196529863,29.302384,180.98,180.93,12.97374234]
[1730196530067,4.13275189,180.97,180.93,12.97374234]
[1730196530263,29.302384,180.98,180.93,12.97374234]
[1730196530472,4.13275817,180.97,180.93,12.97374234]
[1730196530674,29.302384,180.98,180.93,12.97374234]
[1730196530975,4.13275831,180.97,180.92,12.97434234]
[1730196531272,36.74952634,180.98,180.92,12.97434234]
[1730196531470,4.13279332,180.97,180.92,12.97434234]
[1730196531666,36.74952634,180.98,180.92,12.97434234]
[1730196531875,4.13277666,180.97,180.92,12.97434234]
[1730196532067,36.74952634,180.98,180.92,12.97434234]
[1730196532267,9.65841426,180.97,180.92,12.97434234]
[1730196532575,5.5259,180.97,180.92,12.97434234]
[1730196541668,5.5259,180.97,180.91,13.8186]
[1730196541669,23.776884,180.96,180.91,13.8186]
[1730196541875,31.22402634,180.96,180.91,13.8186]
[1730196542681,31.22402634,180.96,180.91,19.3462]
[1730196543874,36.75032634,180.96,180.91,19.3462]
[1730196544269,36.75032634,180.96,180.91,26.79334234]
[1730196544875,29.303184,180.96,180.91,26.79334234]
[1730196547763,36.75032634,180.96,180.91,26.79334234]
[1730196548167,4.13625621,180.95,180.91,26.79334234]
[1730196548364,36.75032634,180.96,180.91,26.79334234]
[1730196548681,4.13672806,180.95,180.91,13.8186]
[1730196548981,36.75032634,180.96,180.91,13.8186]
[1730196549162,4.13685258,180.95,180.91,13.8186]
[1730196549358,29.303184,180.96,180.91,21.26574234]
[1730196549570,4.13759865,180.95,180.91,26.79334234]
[1730196549777,29.303184,180.96,180.91,26.79334234]
[1730196549987,4.1375961,180.95,180.91,26.79334234]
[1730196550288,29.303184,180.96,180.91,26.79334234]
[1730196550472,4.13844159,180.95,180.91,26.79334234]
[1730196556293,4.13844159,180.95,180.91,13.8186]
[1730196556585,4.13844159,180.95,180.91,21.26574234]
[1730196557271,10.7607463,180.95,180.91,13.8186]
[1730196558591,4.13844159,180.95,180.91,19.3462]
[1730196558894,31.22402634,180.93,180.88,21.26814234]
[1730196559387,31.22402634,180.93,180.88,13.821]
[1730196560065,31.22402634,180.93,180.88,19.3495]
[1730196560266,4.13873191,180.92,180.88,19.3495]
[1730196560483,31.22402634,180.93,180.88,19.3495]
[1730196560882,31.22402634,180.93,180.88,26.79664234]
[1730196561080,4.13809527,180.92,180.88,26.79664234]
[1730196561280,31.22402634,180.93,180.88,26.79664234]
[1730196561878,36.75122634,180.93,180.88,26.79664234]
[1730196566995,36.75122634,180.93,180.88,26.79664234]
[1730196577402,16.34273595,180.96,180.92,7.44714234]
[1730196577586,4.13392435,180.95,180.93,7.44714234]
[1730196577790,16.34273595,180.96,180.94,7.44714234]
[1730196577990,30.0,180.95,180.94,7.44714234]
[1730196578183,30.0,180.95,180.88,19.3495]
[1730196578393,37.44714234,180.95,180.9,7.44714234]
[1730196578797,30.0,180.95,180.9,7.44714234]
[1730196578987,29.31617829,180.96,180.91,7.44714234]
[1730196579483,23.776884,180.95,180.91,7.44714234]
[1730196582604,29.303184,180.95,180.91,7.44714234]
[1730196583498,29.303184,180.95,180.9,12.97484234]
[1730196584988,29.303184,180.95,180.91,7.44714234]
[1730196586609,29.303184,180.95,180.92,7.44714234]
[1730196587687,29.303184,180.95,180.91,7.44714234]
[1730196593308,16.34273595,180.96,180.94,7.44714234]
[1730196593625,16.34273595,180.96,180.95,7.44714234]
[1730196598596,16.34273595,180.96,180.95,12.97344234]
[1730196608825,16.34273595,180.96,180.95,7.44714234]
[1730196610107,16.34273595,180.96,180.95,3.86155089]
[1730196610600,21.86873595,180.96,180.92,7.44714234]
[1730196611508,21.86873595,180.96,180.91,5.5276]
[1730196611509,31.22402634,180.95,180.9,21.26684234]
[1730196611701,31.22402634,180.95,180.9,7.44714234]
[1730196612717,5.5266,180.94,180.9,7.44714234]
[1730196613026,5.5266,180.94,180.89,7.44714234]
[1730196613319,5.5266,180.94,180.9,7.44714234]
[1730196616328,23.776884,180.93,180.89,12.97534234]
[1730196616905,23.776884,180.92,180.88,7.44714234]
[1730196617220,31.22402634,180.92,180.87,19.3505]
[1730196617619,31.22402634,180.92,180.87,13.8219]